bitfinex/quotes_ETHUSD_20250730
["timestamp","ask_amount","ask_price","bid_price","bid_amount"]
[1753874731467,0.1328,3766.0,3765.6,0.1]
[1753874731644,1.15738116,3765.9,3765.6,0.1]
[1753874731968,1.15738116,3765.8,3765.6,0.1]
[1753874732145,0.24248116,3765.7,3765.6,0.1]
[1753874732452,1.15738116,3765.7,3765.6,0.1]
[1753874734164,0.70338116,3765.7,3765.6,0.1]
[1753874734322,0.9149,3765.7,3765.6,0.1]
[1753874734644,0.4609,3765.7,3765.6,0.1]
[1753874734849,2.4770075,3765.7,3765.6,0.1]
[1753874735477,5.30447985,3765.7,3765.6,0.1]
[1753874735722,5.27797897,3765.7,3765.6,0.1]
[1753874735883,9.60997897,3765.7,3765.6,0.1]
[1753874736764,9.60985758,3765.7,3765.6,0.1]
[1753874737092,2.65590141,3765.2,3765.1,0.05]
[1753874737235,3.98930766,3765.2,3765.1,0.05]
[1753874737549,8.07599926,3765.2,3765.1,0.05]
[1753874737747,8.04949838,3765.2,3765.1,0.05]
[1753874738771,8.04949838,3765.2,3765.1,0.002]
[1753874738957,3.41838359,3764.8,3764.1,0.04]
[1753874739157,4.29464872,3764.8,3764.1,0.04]
[1753874739355,2.55336513,3764.8,3764.1,0.04]
[1753874739557,6.85286425,3764.8,3764.1,0.04]
[1753874739859,9.50856539,3764.8,3764.1,0.04]
[1753874740042,12.50856539,3764.8,3764.1,0.04]
[1753874742184,12.50456539,3764.8,3764.1,0.04]
[1753874742861,1.36964814,3764.8,3764.1,0.04]
[1753874743075,5.0822,3764.8,3764.1,0.04]
[1753874743378,5.5431,3764.8,3764.1,0.04]
[1753874743576,8.65328359,3764.8,3764.1,0.04]
[1753874744049,5.2349,3764.8,3764.1,0.04]
[1753874744247,2.6563961,3764.5,3764.1,0.04]
[1753874744448,1.42835588,3764.4,3764.1,0.04]
[1753874744651,4.319,3764.3,3764.1,0.04]
[1753874744837,0.1328,3764.2,3764.1,0.04]
[1753874745059,3.70430698,3764.2,3764.1,0.04]
[1753874745236,3.73080786,3764.2,3764.1,0.04]
[1753874745442,5.68760086,3764.2,3764.1,0.04]
[1753874745665,5.66109998,3764.2,3764.1,0.04]
[1753874745832,3.004493,3764.2,3764.1,0.04]
[1753874746037,5.66109998,3764.2,3764.1,0.04]
[1753874747281,2.089593,3764.2,3764.1,0.04]
[1753874747484,0.1328,3764.2,3764.1,0.04]
[1753874747692,4.323,3764.2,3764.1,0.9856]
[1753874747976,4.323,3764.2,3764.1,0.04]
[1753874748968,2.65608799,3765.0,3764.1,0.04]
[1753874749174,5.02068489,3764.9,3764.1,0.04]
[1753874749373,7.67680594,3764.9,3764.1,0.04]
[1753874749542,5.02068489,3764.9,3764.1,0.04]
[1753874750056,4.318,3764.8,3764.1,0.04]
[1753874750796,4.318,3764.7,3764.1,3.64227175]
[1753874750991,4.318,3764.7,3764.1,0.9856]
[1753874751279,4.318,3764.7,3764.1,0.04]
[1753874751479,4.318,3764.7,3764.1,2.69663162]
[1753874751480,0.47789,3764.6,3764.1,2.69663162]
[1753874751680,1.2408,3765.1,3764.1,0.04]
[1753874752000,2.78724206,3766.0,3764.1,0.04]
[1753874752001,0.7863,3764.9,3764.1,0.04]
[1753874752177,2.65632316,3764.7,3764.1,0.04]
[1753874752495,0.02650088,3764.7,3764.1,0.042]
[1753874752658,0.7863,3765.4,3764.3,0.55]
[1753874752860,4.331,3765.3,3764.8,2.65614495]
[1753874753063,0.7863,3765.8,3764.9,0.9456]
[1753874753245,4.331,3765.6,3765.2,2.65587355]
[1753874753442,4.331,3765.6,3764.4,0.8075]
[1753874753443,6.98665558,3765.6,3764.4,0.8075]
[1753874753656,2.65580645,3765.4,3764.4,0.8075]
[1753874753859,4.26926878,3765.5,3764.6,2.65627149]
[1753874754188,1.61356556,3765.5,3764.7,2.65618653]
[1753874754387,4.331,3765.4,3764.8,3.20613076]
[1753874754695,4.331,3765.5,3764.5,0.55]
[1753874754889,0.02650088,3765.3,3764.7,0.55]
[1753874755186,4.331,3765.5,3764.4,1.2871]
[1753874755364,4.33,3765.4,3764.8,2.65613376]
[1753874755559,2.65590703,3765.2,3764.5,1.12091]
[1753874755744,0.02650088,3765.1,3764.5,0.9456]
[1753874755949,2.65590903,3765.2,3764.5,0.9456]
[1753874756149,5.1176,3765.4,3764.5,0.9456]
[1753874756548,2.65596665,3765.2,3764.5,0.9456]
[1753874756751,5.1176,3765.4,3764.5,0.9456]
[1753874756965,3.52466289,3765.3,3764.4,0.8075]
[1753874757189,2.65590607,3765.2,3764.4,0.8075]
[1753874757353,2.65597195,3765.1,3764.4,0.8075]
[1753874757689,0.1328,3764.7,3764.4,0.8075]
[1753874758048,4.33,3765.4,3764.7,2.65618502]
[1753874758267,0.1328,3765.2,3764.7,2.78903962]
[1753874758590,0.1328,3765.2,3764.8,3.60176639]
[1753874759087,0.1328,3765.2,3764.8,0.9456]
[1753874759392,0.1328,3765.2,3764.7,0.1328]
[1753874759773,0.1328,3765.2,3764.7,0.5988]
[1753874759968,0.1328,3765.2,3764.7,1.0784]
[1753874760370,0.1328,3765.2,3764.7,0.1328]
[1753874760555,0.1328,3764.8,3764.3,0.1328]
[1753874760867,0.1328,3764.8,3764.3,1.0453]
[1753874761052,0.1328,3764.8,3764.1,0.806]
[1753874761053,2.65643971,3764.5,3764.1,0.806]
[1753874761248,0.15930088,3764.4,3764.1,0.042]
[1753874761454,0.4646,3765.1,3764.3,2.6565364]
[1753874761648,4.319,3765.1,3764.4,4.33506027]
[1753874762091,4.319,3765.1,3764.4,0.7661]
[1753874762296,2.65630785,3764.7,3764.1,0.042]
[1753874762458,4.319,3765.0,3764.1,0.042]
[1753874762659,4.319,3765.0,3764.1,0.9545]
[1753874762870,2.65623444,3764.8,3764.1,0.9545]
[1753874763072,4.319,3765.0,3764.2,0.57656606]
[1753874763356,4.316,3765.4,3764.3,1.2059]
[1753874763571,2.65617396,3764.9,3764.3,0.7661]
[1753874763792,2.65617396,3764.9,3764.1,0.042]
[1753874763793,0.02650088,3764.8,3764.1,0.042]
[1753874763978,2.65641537,3764.5,3764.1,0.042]
[1753874764179,0.4646,3764.4,3764.1,0.042]
[1753874764884,3.56607676,3764.7,3764.1,0.042]
[1753874765086,0.9098,3764.7,3764.1,0.042]
[1753874765398,0.4646,3764.7,3764.1,0.042]
[1753874765699,5.4146174,3764.9,3764.2,2.6565629]
[1753874765700,4.316,3764.9,3764.2,2.6565629]
[1753874765906,4.316,3764.9,3764.1,0.4818]
[1753874766061,5.36977518,3764.9,3764.2,2.65660382]
[1753874766267,6.97215165,3764.9,3764.1,3.13846224]
[1753874766488,2.65619904,3764.8,3764.1,0.042]
[1753874766997,4.7806,3764.9,3764.1,0.042]
[1753874766998,2.68281604,3764.7,3764.1,0.042]
[1753874767175,3.14737075,3764.7,3764.1,0.042]
[1753874767373,0.4646,3764.7,3764.1,0.042]
[1753874767583,0.4646,3764.7,3764.2,2.65656083]
[1753874767786,4.316,3764.9,3764.1,0.042]
[1753874767996,1.43238,3764.8,3764.1,0.042]
[1753874768423,2.65637631,3764.6,3764.1,0.042]
[1753874768621,0.4646,3764.7,3764.1,0.042]
[1753874768777,2.65645641,3764.5,3764.1,0.042]
[1753874768983,0.9098,3764.4,3764.1,0.042]
[1753874769624,0.4646,3764.7,3764.1,0.042]
[1753874769788,0.4646,3764.4,3764.1,0.042]
[1753874770605,0.574838,3764.6,3764.1,0.042]
[1753874770903,0.9098,3764.8,3764.1,0.042]
[1753874771111,2.6561782,3764.9,3764.1,0.042]
[1753874771291,0.4452,3764.8,3764.1,0.042]
[1753874771463,0.1328,3764.5,3764.1,0.042]
[1753874771667,0.1328,3764.7,3764.2,2.78935145]
[1753874771867,0.1328,3764.7,3764.2,0.5726]
[1753874772068,0.4646,3764.6,3764.1,0.042]
[1753874772304,0.1328,3764.7,3764.1,2.83142963]
[1753874772518,0.1328,3764.7,3764.1,0.1748]
[1753874772718,0.4646,3764.7,3764.1,0.042]
[1753874772870,0.1328,3764.3,3764.1,0.042]
[1753874773270,0.1328,3764.3,3764.1,2.69862991]
[1753874773485,0.1328,3764.3,3764.1,0.042]
[1753874773683,0.1328,3764.3,3763.7,4.401]
[1753874773684,1.2369,3764.2,3763.2,0.4727]
[1753874773911,0.37919225,3764.1,3763.5,0.4727]
[1753874774217,0.13697,3764.1,3764.0,2.65674814]
[1753874774427,4.319,3765.0,3764.1,3.45067538]
[1753874774708,0.24219675,3764.9,3764.2,0.4727]
[1753874774922,0.24219675,3764.9,3764.1,0.796]
[1753874774923,2.65656572,3764.3,3764.1,0.796]
[1753874775104,2.92226355,3764.2,3764.1,0.002]
[1753874775274,3.55970698,3764.2,3764.1,0.002]
[1753874775475,2.65731292,3763.2,3762.9,0.794]
[1753874775676,5.1182,3763.6,3762.9,0.794]
[1753874775924,3.56041292,3763.2,3762.4,0.832]
[1753874776120,3.56041292,3763.2,3762.1,0.04]
[1753874776282,7.35961292,3763.2,3763.1,1e-08]
[1753874776489,7.6015868,3763.2,3763.1,1e-08]
[1753874776686,7.35961292,3763.2,3763.1,1e-08]
[1753874776885,7.60159484,3763.2,3763.1,1e-08]
[1753874777317,7.60135313,3763.2,3763.1,1e-08]
[1753874778018,37.60135313,3763.2,3763.1,1e-08]
[1753874778318,41.91935313,3763.2,3763.1,1e-08]
[1753874779417,41.91635313,3763.2,3763.1,1e-08]
[1753874780282,37.60135313,3763.2,3763.1,1e-08]
[1753874780613,37.60135313,3763.2,3761.1,0.4798]
[1753874780614,0.7672,3762.2,3761.1,0.04]
[1753874780916,0.7783,3762.6,3761.2,0.4727]
[1753874781120,0.7783,3763.0,3761.5,0.55]
[1753874781285,4.321,3762.9,3762.1,2.65802573]
[1753874781484,4.322,3762.8,3762.3,0.7841]
[1753874781704,0.02650088,3763.3,3762.4,0.4727]
[1753874782031,0.47170088,3763.2,3762.0,0.7875]
[1753874782317,2.65793944,3762.4,3761.9,0.4727]
[1753874782630,4.321,3762.3,3761.7,0.7783]
[1753874782831,0.7731,3763.6,3762.1,1.3283]
[1753874783030,4.32,3763.5,3762.4,3.43616595]
[1753874783349,4.32,3763.5,3762.5,0.9125]
[1753874783479,0.04,3763.9,3762.6,0.4727]
[1753874783674,2.65715446,3763.5,3762.6,0.4727]
[1753874783922,0.1328,3763.0,3762.6,0.4727]
[1753874784116,0.1328,3763.0,3762.7,2.65766603]
[1753874784286,4.32,3763.8,3763.0,2.65745415]
[1753874784488,0.04,3763.9,3763.1,0.4727]
[1753874784489,0.1328,3763.3,3763.1,0.4727]
[1753874784689,0.04,3763.9,3763.3,2.65717173]
[1753874784690,0.1328,3763.5,3763.3,2.65717173]
[1753874785023,4.324,3763.4,3762.8,0.4727]
[1753874785320,4.324,3763.3,3762.8,0.4727]
[1753874785613,0.47170088,3763.2,3762.4,0.4727]
[1753874785812,1.2336,3763.7,3762.4,0.4727]
[1753874786121,2.6571139,3763.5,3762.4,0.4727]
[1753874786421,6.99004234,3763.6,3762.6,2.65767555]
[1753874786628,6.99004234,3763.6,3762.7,0.4727]
[1753874786629,4.333,3763.6,3762.7,0.4727]
[1753874786926,4.332,3763.6,3762.8,0.7926]
[1753874787148,4.332,3763.6,3762.9,1.0227]
[1753874787281,4.332,3763.6,3762.9,0.55]
[1753874787488,4.332,3763.6,3763.0,0.4727]
[1753874787703,4.332,3763.6,3763.0,3.13009585]
[1753874787916,4.332,3763.6,3763.0,0.4727]
[1753874788218,2.65689377,3763.8,3763.0,0.4727]
[1753874788429,2.65688931,3763.8,3763.0,0.4727]
[1753874788614,2.69682809,3763.9,3763.0,0.4727]
[1753874788820,0.04,3763.9,3763.0,0.4727]
[1753874788985,0.04,3763.9,3763.2,0.8129]
[1753874789183,0.04,3763.9,3763.3,2.65724231]
[1753874789384,0.04,3763.9,3763.4,2.6571717]
[1753874789579,0.04,3763.9,3763.4,0.9125]
[1753874789821,0.04,3763.9,3763.5,0.4727]
[1753874790024,0.04,3763.9,3763.5,0.9125]
[1753874790182,0.04,3763.9,3763.2,0.8129]
[1753874790892,0.02650088,3763.8,3762.8,0.7875]
[1753874791098,1.34450088,3763.9,3762.8,0.7875]
[1753874791294,2.65703534,3763.6,3762.8,0.7875]
[1753874791498,2.65697462,3763.7,3762.8,0.7875]
[1753874791701,2.65689999,3763.8,3762.8,3.44509442]
[1753874791899,0.8443,3763.9,3763.0,2.65739383]
[1753874792110,0.04,3763.9,3763.1,0.4965]
[1753874792322,0.04,3763.9,3763.2,0.8129]
[1753874792520,2.6968645,3763.9,3763.2,0.8129]
[1753874792719,0.04,3763.9,3763.2,0.8129]
[1753874792996,0.82210088,3763.8,3762.9,0.4965]
[1753874793199,0.4737,3763.7,3762.9,0.4965]
[1753874793611,2.657222,3763.4,3762.9,0.4965]
[1753874793944,0.4737,3763.4,3762.5,0.4965]
[1753874794456,2.65724231,3763.3,3762.5,0.4965]
[1753874795041,0.4737,3763.4,3762.5,0.4965]
[1753874795042,0.1328,3763.1,3762.5,0.6293]
[1753874795200,2.6575128,3763.0,3762.5,0.4965]
[1753874795529,4.319,3763.5,3762.7,0.1]
[1753874795753,0.24149757,3763.4,3762.7,0.1]
[1753874795892,0.1328,3763.1,3762.8,0.4965]
[1753874796091,0.1328,3763.1,3762.9,0.4965]
[1753874796292,0.1328,3763.1,3763.0,0.4965]
[1753874796588,0.1328,3763.2,3763.0,0.4965]
[1753874796828,0.1328,3763.3,3763.1,0.4965]
[1753874797122,2.79009867,3763.3,3762.7,0.7293]
[1753874797325,0.71519891,3763.2,3763.1,0.002]
[1753874797542,0.74169979,3763.2,3763.1,0.002]
[1753874797697,0.84799891,3763.2,3763.1,0.002]
[1753874797901,3.50531183,3763.2,3763.1,0.002]
[1753874798216,4.81031271,3763.2,3763.1,0.002]
[1753874798529,9.12231271,3763.2,3763.1,0.002]
[1753874798735,9.09581183,3763.2,3763.1,0.002]
[1753874798894,12.09581183,3763.2,3763.1,0.002]
[1753874799090,11.63791183,3763.2,3763.1,0.002]
[1753874799325,12.09581183,3763.2,3763.1,0.002]
[1753874799543,2.3496,3762.7,3760.1,0.8183]
[1753874799696,0.7712,3762.4,3760.7,0.4634]
[1753874799921,4.314,3762.3,3761.1,0.5365]
[1753874800122,2.65807104,3762.2,3761.2,2.65872105]
[1753874800360,2.65808801,3762.2,3761.1,0.5034]
[1753874800566,2.65810692,3762.1,3761.3,0.4965]
[1753874800724,6.97200121,3762.3,3761.3,0.4965]
[1753874801070,6.97200121,3762.3,3761.6,0.7587]
[1753874801071,4.314,3762.3,3761.6,0.7587]
[1753874801236,8.0795,3762.8,3761.6,3.41713535]
[1753874801433,8.0795,3762.8,3761.7,0.4965]
[1753874801645,10.73711341,3762.8,3761.7,3.15485987]
[1753874801859,5.0795,3762.8,3761.9,2.65821927]
[1753874802073,4.321,3762.8,3762.0,0.4965]
[1753874802242,4.32,3763.3,3762.1,1.2854]
[1753874802570,0.24220215,3763.2,3762.2,0.4965]
[1753874802725,0.02650088,3763.1,3762.1,3.4800292]
[1753874803067,0.02650088,3763.1,3762.2,0.4965]
[1753874803220,3.13115415,3763.0,3762.1,0.822]
[1753874803425,0.24220215,3762.9,3762.1,0.822]
[1753874803860,4.317,3762.9,3762.1,0.822]
[1753874804264,6.97458613,3762.9,3762.1,0.822]
[1753874804449,6.97458613,3762.9,3761.8,0.4965]
[1753874804450,0.7545,3762.7,3761.8,0.4965]
[1753874804651,0.7545,3762.7,3761.7,0.7636]
[1753874804652,0.4737,3762.6,3761.7,0.7636]
[1753874804850,2.65796391,3762.3,3761.2,0.7636]
[1753874805051,3.13171927,3762.2,3761.2,0.7636]
[1753874805372,0.754,3762.0,3761.1,0.04]
[1753874805662,4.316,3762.3,3761.2,1.2631]
[1753874805840,2.65802793,3762.2,3761.2,1.2631]
[1753874806037,1.596,3762.0,3761.1,0.04]
[1753874806248,0.8164,3762.1,3761.1,0.04]
[1753874806249,6.47512593,3761.2,3761.1,0.04]
[1753874806455,5.1344,3761.2,3761.1,0.04]
[1753874806828,8.26682593,3761.2,3761.1,0.04]
[1753874807026,9.69362696,3761.2,3761.1,0.04]
[1753874807441,6.57700103,3761.2,3761.1,0.04]
[1753874807775,9.23572696,3761.2,3761.1,0.04]
[1753874807978,12.69362696,3761.2,3761.1,0.04]
[1753874808280,0.8252,3761.2,3761.1,0.04]
[1753874808582,8.1882,3761.2,3761.1,0.04]
[1753874808778,7.750316,3761.2,3761.1,0.04]
[1753874809077,0.387316,3761.2,3761.1,0.04]
[1753874809439,0.2420725,3761.2,3761.1,0.04]
[1753874809634,0.3748725,3761.2,3761.1,0.04]
[1753874810095,0.3748725,3761.2,3761.1,0.5365]
[1753874810778,0.37436959,3761.2,3761.1,0.5365]
[1753874811342,0.37436959,3761.2,3761.1,0.04]
[1753874811740,0.24156959,3761.2,3761.1,1.7868]
[1753874812082,0.1328,3761.4,3761.1,1.503582]
[1753874812411,0.1328,3761.4,3761.2,0.4965]
[1753874812883,0.1328,3761.6,3761.4,2.65856421]
[1753874813052,0.24141775,3762.0,3761.5,0.4965]
[1753874813253,0.24141775,3762.0,3761.6,0.9599]
[1753874813510,0.24141775,3761.9,3761.8,2.65830187]
[1753874813683,4.363,3762.6,3761.9,2.65823042]
[1753874813850,0.1328,3762.4,3762.0,0.4965]
[1753874814051,0.2414335,3762.5,3762.1,0.4965]
[1753874814355,0.1328,3762.3,3762.1,0.4965]
[1753874815750,0.1328,3762.3,3761.8,0.8207]
[1753874815987,0.1328,3762.3,3761.9,3.15472956]
[1753874816194,0.3742335,3762.3,3762.0,0.4965]
[1753874816499,0.1328,3762.3,3762.0,0.4965]
[1753874817259,0.1328,3762.3,3762.1,0.4965]
[1753874818774,0.1328,3762.3,3761.8,0.8207]
[1753874819072,0.1328,3762.2,3761.9,3.61806332]
[1753874819273,0.24145416,3762.5,3761.7,0.1328]
[1753874819274,0.24151352,3762.4,3761.7,0.1328]
[1753874819473,0.24151352,3762.4,3761.7,0.4965]
[1753874820094,2.89939685,3762.4,3761.7,0.4965]
[1753874820275,0.24151352,3762.3,3761.7,0.4965]
[1753874820476,0.24151352,3762.2,3761.7,0.4965]
[1753874820805,0.24151352,3762.1,3761.8,0.9123]
[1753874821136,0.02650088,3762.0,3761.4,1.2789]
[1753874821275,0.4322,3762.1,3761.4,1.2789]
[1753874821797,0.001,3762.3,3761.5,0.4534]
[1753874822101,0.4322,3762.2,3761.5,0.4534]
[1753874822279,0.24164086,3762.1,3761.5,0.4534]
[1753874822662,0.24164086,3762.1,3761.6,2.65842757]
[1753874822995,0.24164086,3762.1,3761.7,0.4534]
[1753874823202,0.001,3762.3,3761.7,0.4534]
[1753874823572,0.001,3762.3,3761.8,0.4589]
[1753874823773,0.001,3762.3,3762.2,3.48491924]
[1753874823980,0.001,3762.3,3762.2,4.10187954]
[1753874824176,0.001,3762.3,3762.2,2.3561603]
[1753874824380,0.001,3762.3,3762.2,1.2803]
[1753874824575,0.001,3762.3,3762.2,3.93831924]
[1753874825064,0.001,3762.3,3762.2,4.39721924]
[1753874825602,0.001,3762.3,3762.2,1.7392]
[1753874826098,0.001,3762.3,3762.2,3.93831924]
[1753874826304,0.001,3762.3,3762.2,5.49226652]
[1753874826462,0.001,3762.3,3761.9,0.4534]
[1753874826819,0.001,3762.3,3762.2,2.65801924]
[1753874826979,0.001,3762.3,3762.2,2.68459943]
[1753874827331,0.001,3762.3,3762.2,4.38131924]
[1753874827480,0.001,3762.3,3762.2,4.93131924]
[1753874827808,0.001,3762.3,3762.2,5.69026136]
[1753874828009,0.001,3762.3,3762.2,10.05326136]
[1753874828408,0.001,3762.3,3762.2,10.05226136]
[1753874828878,0.001,3762.3,3762.2,3.92241924]
[1753874829417,0.001,3762.3,3762.2,0.5862]
[1753874829579,0.001,3762.3,3762.2,3.24421924]
[1753874830218,0.001,3762.3,3762.2,3.70311924]
[1753874830969,0.001,3762.3,3762.2,3.24421924]
[1753874831200,0.001,3762.3,3762.2,5.27935675]
[1753874831402,0.001,3762.3,3762.2,9.17945675]
[1753874831930,0.001,3762.3,3762.2,9.17445675]
[1753874832314,0.001,3762.3,3762.2,7.59721924]
[1753874832529,0.001,3762.3,3762.2,3.24421924]
[1753874832707,0.001,3762.3,3762.2,7.59721924]
[1753874832896,0.001,3762.3,3762.2,0.5862]
[1753874833405,0.001,3762.3,3762.2,3.24421924]
[1753874833810,0.001,3762.3,3762.2,0.5862]
[1753874834130,0.001,3762.3,3762.2,7.59321924]
[1753874834333,0.001,3762.3,3762.2,4.9352]
[1753874834647,0.001,3762.3,3762.2,7.59321924]
[1753874835423,0.001,3762.3,3762.2,3.24421924]
[1753874835635,0.001,3762.3,3762.2,7.59221924]
[1753874836235,0.001,3762.3,3762.2,0.5862]
[1753874836406,0.001,3762.3,3762.2,4.9302]
[1753874836757,0.001,3762.3,3762.2,7.58821924]
[1753874837113,0.001,3762.3,3762.2,4.9302]
[1753874837443,0.001,3762.3,3762.2,7.58821924]
[1753874837629,0.001,3762.3,3762.2,9.62175375]
[1753874837996,0.001,3762.3,3762.2,9.16285375]
[1753874838221,0.001,3762.3,3762.2,3.79421924]
[1753874838391,0.001,3762.3,3762.2,3.24421924]
[1753874838593,0.001,3762.3,3762.2,7.58121924]
[1753874839135,0.001,3762.3,3760.0,0.51]
[1753874839136,2.65879662,3761.1,3760.0,0.51]
[1753874839355,3.438733,3760.2,3760.0,0.51]
[1753874839837,2.04401375,3760.2,3760.0,0.51]
[1753874840037,4.24554675,3760.2,3760.0,0.51]
[1753874840234,4.90362745,3760.2,3760.0,0.51]
[1753874840747,4.90338467,3760.2,3760.0,0.51]
[1753874841237,1.78605167,3760.2,3760.0,0.51]
[1753874841541,4.44548467,3760.2,3760.0,0.51]
[1753874841837,1.78605167,3760.2,3760.0,0.51]
[1753874842002,0.3329807,3760.2,3760.0,0.51]
[1753874842203,0.7651807,3760.2,3760.0,0.51]
[1753874842625,0.3329807,3760.2,3760.0,0.51]
[1753874844445,0.3329807,3760.2,3760.1,0.042]
[1753874845113,1.2230807,3760.2,3760.1,0.042]
[1753874845502,0.7651807,3760.2,3760.1,0.042]
[1753874845701,0.3329807,3760.2,3760.1,0.042]
[1753874846124,3.8825137,3760.2,3760.1,0.042]
[1753874846336,4.20823602,3760.2,3760.1,0.042]
[1753874846532,1.52230214,3760.2,3760.1,0.042]
[1753874846848,1.06440214,3760.2,3760.1,0.042]
[1753874847017,3.4246137,3760.2,3760.1,0.042]
[1753874847211,3.90901458,3760.2,3760.1,0.042]
[1753874847426,1.24958158,3760.2,3760.1,0.042]
[1753874847660,0.7651807,3760.2,3760.1,0.042]
[1753874847836,3.8825137,3760.2,3760.1,0.042]
[1753874848150,4.97969452,3760.2,3760.1,0.042]
[1753874848544,2.32026152,3760.2,3760.1,0.042]
[1753874848756,4.97969452,3760.2,3760.1,0.042]
[1753874849742,2.32026152,3760.2,3760.1,0.042]
[1753874849953,1.86236152,3760.2,3760.1,0.042]
[1753874850143,4.7539807,3760.2,3760.1,0.042]
[1753874850744,8.3324137,3760.2,3760.1,0.042]
[1753874851546,5.6729807,3760.2,3760.1,0.042]
[1753874851748,5.2150807,3760.2,3760.1,0.042]
[1753874852152,4.7539807,3760.2,3760.1,0.042]
[1753874852333,5.69047877,3760.2,3760.1,0.042]
[1753874852533,8.80781177,3760.2,3760.1,0.042]
[1753874853231,5.15701177,3760.2,3760.1,0.042]
[1753874853428,9.56901177,3760.2,3760.1,0.042]
[1753874854932,6.90957877,3760.2,3760.1,0.042]
[1753874855264,5.5151807,3760.2,3760.1,0.042]
[1753874856292,4.7449807,3760.2,3760.1,0.042]
[1753874856494,4.7449807,3760.2,3760.1,0.5377]
[1753874856704,4.7369807,3760.2,3760.1,0.5377]
[1753874856863,4.7369807,3760.2,3760.1,0.042]
[1753874857057,4.7369807,3760.2,3760.1,0.5377]
[1753874857997,0.3329807,3760.2,3760.1,0.5377]
[1753874859197,0.3329807,3760.2,3760.1,0.042]
[1753874859910,0.3329807,3760.2,3760.1,0.5377]
[1753874860265,0.3329807,3760.2,3760.1,0.042]
[1753874861095,3.92631177,3760.2,3760.1,0.042]
[1753874861278,2.05407877,3760.2,3760.1,0.042]
[1753874861492,4.71351177,3760.2,3760.1,0.042]
[1753874862105,0.80577877,3760.2,3760.1,0.042]
[1753874862268,0.7940807,3760.2,3760.1,0.042]
[1753874862700,0.3329807,3760.2,3760.1,0.042]
[1753874862891,0.7940807,3760.2,3760.1,0.042]
[1753874863087,0.2001807,3760.2,3760.1,0.042]
[1753874863287,4.386,3760.6,3760.1,0.5377]
[1753874863607,4.385,3760.6,3760.2,0.4957]
[1753874863765,4.385,3760.6,3760.1,0.042]
[1753874863969,4.385,3760.6,3760.3,0.4957]
[1753874864721,4.589611,3760.6,3760.3,0.4957]
[1753874864875,4.589611,3760.6,3760.4,0.4957]
[1753874865065,0.204611,3760.6,3760.4,0.4957]
[1753874865409,4.384,3760.5,3760.1,0.8683]
[1753874865580,0.8119,3760.9,3760.2,0.4651]
[1753874865901,5.1939,3760.9,3760.3,3.15503601]
[1753874866207,0.24147186,3760.8,3760.4,0.4957]
[1753874866429,4.382,3760.9,3760.2,3.30884474]
[1753874866590,4.382,3760.9,3760.4,0.4957]
[1753874866791,4.57854161,3760.9,3760.5,0.4957]
[1753874867016,5.03964161,3760.9,3760.5,0.4957]
[1753874867186,0.24180553,3760.8,3760.5,0.4957]
[1753874868304,0.24180553,3760.7,3760.5,0.4957]
[1753874868504,0.24180553,3760.6,3760.5,0.4957]
[1753874868700,0.24180553,3760.8,3760.5,0.4957]
[1753874868900,0.24180553,3760.7,3760.5,0.4957]
[1753874869103,0.24180553,3760.6,3760.5,0.4957]
[1753874869438,0.24180553,3760.6,3760.2,2.65943103]
[1753874869744,0.24180553,3760.5,3760.2,3.12453103]
[1753874869894,0.001,3761.0,3760.3,0.4957]
[1753874870090,0.24275937,3760.9,3760.3,3.15505687]
[1753874870296,0.24275937,3760.9,3760.4,0.4957]
[1753874870636,0.4378613,3760.9,3760.2,0.4651]
[1753874870789,0.24275937,3760.8,3760.5,0.4957]
[1753874871127,14.0,3760.6,3760.5,3.15490853]
[1753874871852,14.0,3760.6,3760.5,3.62000853]
[1753874873251,14.0,3760.6,3760.5,3.15490853]
[1753874873437,14.0,3760.6,3760.5,3.62000853]
[1753874873958,14.0,3760.6,3760.5,3.15490853]
[1753874874329,14.0,3760.6,3760.5,3.15492084]
[1753874876355,14.0,3760.6,3760.5,0.4957]
[1753874876525,14.0,3760.6,3760.2,3.15507872]
[1753874876724,14.1328,3760.6,3760.2,3.15507872]
[1753874876922,14.1328,3760.6,3760.1,3.52779574]
[1753874877138,14.4611,3760.6,3760.1,0.5377]
[1753874877363,0.1328,3760.4,3760.2,0.4957]
[1753874877521,14.1328,3760.6,3760.3,2.65933859]
[1753874877727,14.1328,3760.6,3760.4,0.4957]
[1753874877942,14.1328,3760.6,3760.3,0.4957]
[1753874878341,0.1328,3760.4,3760.1,2.70145651]
[1753874878553,0.1328,3760.4,3760.1,3.19715651]
[1753874878750,0.1328,3760.4,3760.2,0.4957]
[1753874878956,0.1328,3760.4,3760.3,2.65936228]
[1753874879140,0.1328,3760.4,3760.3,3.12446228]
[1753874879340,0.1328,3760.4,3760.3,3.62016228]
[1753874879542,14.0,3760.6,3760.5,2.65922084]
[1753874879750,14.0,3760.6,3760.5,9.27551913]
[1753874879966,14.0,3760.6,3760.5,11.65355427]
[1753874880337,0.001,3762.1,3761.0,0.7764]
[1753874880537,0.001,3762.1,3761.5,0.7764]
[1753874880538,1e-08,3762.1,3761.5,0.7764]
[1753874880737,1e-08,3762.1,3762.0,8.36675884]
[1753874880955,1e-08,3762.1,3762.0,13.39455884]
[1753874881154,1e-08,3762.1,3762.0,14.29245884]
[1753874881368,1e-08,3762.1,3762.0,4.51916055]
[1753874881571,1e-08,3762.1,3762.0,9.58090139]